Workbook

Sheet Interpolation Practice
A1: Interpolation Data
A2: x | B2: y
A3: 805 | B3: 0.71
A4: 825 | B4: 0.763
A5: 845 | B5: 0.907
A6: 865 | B6: 1.336
A7: 885 | B7: 2.169
A8: 905 | B8: 1.598
A9: 925 | B9: 0.916
A10: 945 | B10: 0.672
A11: 965 | B11: 0.615
A12: 985 | B12: 0.606

Sheet Interpolation
A1: Interpolation Data
A2: x | B2: y
A3: 805 | B3: 0.71
A4: 825 | B4: 0.763 | D4: Interpolation poly-nomial Results | F4: Polynomials Used
A5: 845 | B5: 0.907 | F5: Linear | G5: Quadratic | H5: Quadratic2 | I5: Cubic
A6: 865 | B6: 1.336 | D6: Interpolation x Values | E6: 853 | F6: =newton($A$5:$A$6,$B$5:$B$6,$E6) -> 1.0786 | G6: =newton($A$4:$A$6,$B$4:$B$6,$E6) -> 1.0444 | H6: =newton($A$5:$A$7,$B$5:$B$7,$E6) -> 1.03012 | I6: =newton($A$3:$A$7,$B$3:$B$7,$E6) -> 1.036056
A7: 885 | B7: 2.169 | E7: 962 | F7: =newton($A$10:$A$11,$B$10:$B$11,$E7) -> 0.62355 | G7: =newton($A$10:$A$12,$B$10:$B$12,$E7) -> 0.62049 | H7: =newton($A$9:$A$11,$B$9:$B$11,$E7) -> 0.61162875 | I7: =newton($A$9:$A$12,$B$9:$B$12,$E7) -> 0.6170931875
A8: 905 | B8: 1.598
A9: 925 | B9: 0.916
A10: 945 | B10: 0.672 | D10: Point | E10: Possible choices for quadratic polynomial | I10: |x - xstart| | J10: |x - xend|
A11: 965 | B11: 0.615 | D11: 853 | E11: 825 | F11: 845 | G11: 865 | H11: 885 | I11: =ABS($D11-E11) -> 28 | J11: =ABS($D11-H11) -> 32
A12: 985 | B12: 0.606 | D12: 962 | E12: 925 | F12: 945 | G12: 965 | H12: 985 | I12: =ABS($D12-E12) -> 37 | J12: =ABS($D12-H12) -> 23
E13: Actual choices in bold based on minimum of (|x - xstart|, |x - xend|)
E14: Quadratic column in table above uses these bold choices.
E15: Quadratic2 column in table above uses alternative set of three data points.

Sheet Regression
A1: y | B1: x1 | C1: x2 | D1: x3 | E1: yHat | F1: y - yHat | G1: y-yMean
A2: 2.55 | B2: 3 | C2: 440 | D2: 500 | E2: =$N$4+$M$4*B2+$L$4*C2+$K$4*D2 -> 2.207811905 | F2: =A2-E2 -> 0.342188095 | G2: =A2-$L$11 -> 0.3744970414 | J2: LINEST Function Results
A3: 2.55 | B3: 3 | C3: 440 | D3: 500 | E3: =$N$4+$M$4*B3+$L$4*C3+$K$4*D3 -> 2.207811905 | F3: =A3-E3 -> 0.342188095 | G3: 0.3744970414 | K3: Slopes | N3: Intercept
A4: 1.95 | B4: 3.47 | C4: 350 | D4: 400 | E4: 2.243284115 | F4: -0.2932841154 | G4: -0.2255029586 | K4: =LINEST(A2:A170,B2:D170,,TRUE) -> 0.0006543418851 | L4: 9.033176061e-05 | M4: 0.231992037 | N4: 1.144918877
A5: 1.89 | B5: 3.14 | C5: 440 | D5: 540 | E5: 2.266464466 | F5: -0.3764644655 | G5: -0.2855029586 | J5: Standard Errors | K5: 0.0008260008399 | L5: 0.0007712305895 | M5: 0.1170383485 | N5: 0.4197334223
A6: 2.24 | B6: 3.46 | C6: 350 | D6: 370 | E6: 2.221333938 | F6: 0.01866606153 | G6: 0.06449704142 | J6: R2 and sy|x values | K6: 0.0405504321 | L6: 0.8353205775
A7: 2.31 | B7: 3.59 | C7: 450 | D7: 480 | E7: 2.332503687 | F7: -0.0225036867 | G7: 0.1344970414 | J7: F statistic and degrees of freedom | K7: 2.32453465 | L7: 165
A8: 1.74 | B8: 1.75 | C8: 200 | D8: 320 | E8: 1.778360697 | F8: -0.03836069684 | G8: -0.4355029586 | J8: Sums of squares | K8: 4.86590515 | L8: 115.1304771
A9: 1.87 | B9: 3.03 | C9: 310 | D9: 470 | E9: 2.183398281 | F9: -0.3133982806 | G9: -0.3055029586
A10: 0.83 | B10: 3.18 | C10: 290 | D10: 400 | E10: 2.170586519 | F10: -1.340586519 | G10: -1.345502959 | I10: Other Calculated Results
A11: 1.25 | B11: 2.77 | C11: 470 | D11: 530 | E11: 2.176793946 | F11: -0.9267939458 | G11: -0.9255029586 | K11: Mean value of y, yMean | L11: =AVERAGE(A2:A170) -> 2.175502959
A12: 2 | B12: 1.87 | C12: 230 | D12: 320 | E12: 1.808909694 | F12: 0.1910903059 | G12: -0.1755029586 | K12: Calculated R2 | L12: =1-SUMPRODUCT(F2:F170,F2:F170)/SUMPRODUCT(G2:G170,G2:G170) -> 0.0405504321
A13: 2.62 | B13: 3.25 | C13: 420 | D13: 560 | E13: 2.303263792 | F13: 0.3167362079 | G13: 0.4444970414 | K13: Confidence Level | L13: 0.95
A14: 2.6 | B14: 3.5 | C14: 310 | D14: 490 | E14: 2.305521376 | F14: 0.2944786243 | G14: 0.4244970414 | K14: Two-sided t-test value | L14: =TINV(1-L13,L7) -> 1.97444563
A15: 2.26 | B15: 2.7 | C15: 520 | D15: 610 | E15: 2.217418442 | F15: 0.04258155794 | G15: 0.08449704142 | K15: Uncertainty range for fitted values
A16: 1.78 | B16: 3.18 | C16: 410 | D16: 310 | E16: 2.122535561 | F16: -0.3425355606 | G16: -0.3955029586 | K16: x3 Slope | L16: x2 Slope | M16: x1 Slope | N16: Intercept
A17: 2.4 | B17: 3.55 | C17: 470 | D17: 540 | E17: 2.364291154 | F17: 0.03570884647 | G17: 0.2244970414 | K17: =$L$14*K4 -> 0.001291962476 | L17: =$L$14*L4 -> 0.00017835515 | M17: =$L$14*M4 -> 0.4580556637 | N17: =$L$14*N4 -> 2.260580073
A18: 2.87 | B18: 3.88 | C18: 640 | D18: 630 | E18: 2.515095695 | F18: 0.3549043053 | G18: 0.6944970414
A19: 2.02 | B19: 4 | C19: 410 | D19: 440 | E19: 2.397833476 | F19: -0.377833476 | G19: -0.1555029586
A20: 1.28 | B20: 3.3 | C20: 440 | D20: 620 | E20: 2.355930542 | F20: -1.075930542 | G20: -0.8955029586
A21: 2.21 | B21: 3.12 | C21: 200 | D21: 610 | E21: 2.285948934 | F21: -0.07594893421 | G21: 0.03449704142
A22: 2.14 | B22: 3.35 | C22: 210 | D22: 390 | E22: 2.196255206 | F22: -0.05625520561 | G22: -0.03550295858
A23: 3.07 | B23: 2.4 | C23: 280 | D23: 440 | E23: 2.014903088 | F23: 1.055096912 | G23: 0.8944970414
A24: 2.89 | B24: 3.65 | C24: 310 | D24: 510 | E24: 2.353407019 | F24: 0.536592981 | G24: 0.7144970414
A25: 2.3 | B25: 3.3 | C25: 420 | D25: 460 | E25: 2.249429205 | F25: 0.05057079456 | G25: 0.1244970414
A26: 2.6 | B26: 2.52 | C26: 200 | D26: 320 | E26: 1.956994565 | F26: 0.6430054347 | G26: 0.4244970414
A27: 2.7 | B27: 3.21 | C27: 390 | D27: 390 | E27: 2.180036037 | F27: 0.5199639627 | G27: 0.5244970414
A28: 1.07 | B28: 1.87 | C28: 420 | D28: 360 | E28: 1.852246404 | F28: -0.782246404 | G28: -1.105502959
A29: 3 | B29: 4 | C29: 430 | D29: 500 | E29: 2.438900624 | F29: 0.5610993756 | G29: 0.8244970414
A30: 0 | B30: 3.59 | C30: 270 | D30: 420 | E30: 2.276983457 | F30: -2.276983457 | G30: -2.175502959
A31: 2.19 | B31: 3.4 | C31: 290 | D31: 370 | E31: 2.201994511 | F31: -0.01199451061 | G31: 0.01449704142
A32: 2.27 | B32: 3 | C32: 280 | D32: 500 | E32: 2.193358823 | F32: 0.07664117674 | G32: 0.09449704142
A33: 1.82 | B33: 3.08 | C33: 360 | D33: 560 | E33: 2.25840524 | F33: -0.4384052402 | G33: -0.3555029586
A34: 2.09 | B34: 2.27 | C34: 270 | D34: 310 | E34: 1.89877636 | F34: 0.1912236395 | G34: =A34-$L$11 -> -0.08550295858
A35: 1.06 | B35: 3.16 | C35: 450 | D35: 580 | E35: 2.298181299 | F35: -1.238181299 | G35: -1.115502959
A36: 1.34 | B36: 3.5 | C36: 380 | D36: 510 | E36: 2.324931437 | F36: -0.9849314367 | G36: -0.8355029586
A37: 2.41 | B37: 3.12 | C37: 470 | D37: 660 | E37: 2.343055604 | F37: 0.06694439617 | G37: 0.2344970414
A38: 3.1 | B38: 3.57 | C38: 330 | D38: 470 | E38: 2.310480616 | F38: 0.7895193842 | G38: 0.9244970414
A39: 2.7 | B39: 0 | C39: 380 | D39: 360 | E39: 1.414808024 | F39: 1.285191976 | G39: 0.5244970414
A40: 1.4 | B40: 3.09 | C40: 260 | D40: 460 | E40: 2.186257796 | F40: -0.786257796 | G40: -0.7755029586
A41: 0.14 | B41: 2.48 | C41: 360 | D41: 540 | E41: 2.10612318 | F41: -1.96612318 | G41: -2.035502959
A42: 1.27 | B42: 2.27 | C42: 250 | D42: 310 | E42: 1.896969725 | F42: -0.6269697253 | G42: -0.9055029586
A43: 2.11 | B43: 2.93 | C43: 290 | D43: 420 | E43: 2.125675347 | F43: -0.01567534747 | G43: -0.06550295858
A44: 3.57 | B44: 2.3 | C44: 360 | D44: 430 | E44: 1.992387006 | F44: 1.577612994 | G44: 1.394497041
A45: 2.5 | B45: 2.93 | C45: 360 | D45: 520 | E45: 2.197432759 | F45: 0.3025672408 | G45: 0.3244970414
A46: 3.24 | B46: 3.27 | C46: 320 | D46: 550 | E46: 2.292327038 | F46: 0.9476729621 | G46: 1.064497041
A47: 3.37 | B47: 2.71 | C47: 400 | D47: 560 | E47: 2.176181457 | F47: 1.193818543 | G47: 1.194497041
A48: 1.81 | B48: 3.15 | C48: 380 | D48: 530 | E48: 2.256821061 | F48: -0.4468210614 | G48: -0.3655029586
A49: 2.24 | B49: 2.85 | C49: 380 | D49: 410 | E49: 2.108702424 | F49: 0.1312975759 | G49: 0.06449704142
A50: 2.38 | B50: 3 | C50: 390 | D50: 520 | E50: 2.216382155 | F50: 0.1636178454 | G50: 0.2044970414
A51: 2.43 | B51: 0 | C51: 460 | D51: 520 | E51: 1.526729267 | F51: 0.9032707332 | G51: 0.2544970414
A52: 2.57 | B52: 3.68 | C52: 320 | D52: 590 | E52: 2.413617449 | F52: 0.1563825515 | G52: 0.3944970414
A53: 1.35 | B53: 1.72 | C53: 360 | D53: 420 | E53: 1.851288206 | F53: -0.5012882059 | G53: -0.8255029586
A54: 2.41 | B54: 3.07 | C54: 250 | D54: 600 | E54: 2.272322502 | F54: 0.1376774985 | G54: 0.2344970414
A55: 2.43 | B55: 3.45 | C55: 390 | D55: 510 | E55: 2.314235152 | F55: 0.1157648476 | G55: 0.2544970414
A56: 2.05 | B56: 3.25 | C56: 200 | D56: 430 | E56: 2.19832636 | F56: -0.1483263597 | G56: -0.1255029586
A57: 2.33 | B57: 3 | C57: 350 | D57: 600 | E57: 2.265116235 | F57: 0.06488376499 | G57: 0.1544970414
A58: 3 | B58: 2.64 | C58: 300 | D58: 410 | E58: 2.052757555 | F58: 0.9472424445 | G58: 0.8244970414
A59: 0.14 | B59: 2.62 | C59: 380 | D59: 560 | E59: 2.153495538 | F59: -2.013495538 | G59: -2.035502959
A60: 2.24 | B60: 3.71 | C60: 290 | D60: 440 | E60: 2.319715974 | F60: -0.07971597404 | G60: 0.06449704142
A61: 0.88 | B61: 1.84 | C61: 420 | D61: 390 | E61: 1.864916899 | F61: -0.9849168995 | G61: -1.295502959
A62: 2.05 | B62: 3.34 | C62: 270 | D62: 370 | E62: 2.186268353 | F62: -0.1362683532 | G62: -0.1255029586
A63: 3.08 | B63: 2.52 | C63: 300 | D63: 420 | E63: 2.03146193 | F63: 1.04853807 | G63: 0.9044970414
A64: 2.78 | B64: 3.62 | C64: 450 | D64: 580 | E64: 2.404897636 | F64: 0.3751023637 | G64: 0.6044970414
A65: 2 | B65: 2.96 | C65: 450 | D65: 500 | E65: 2.199435541 | F65: -0.1994355411 | G65: -0.1755029586
A66: 3.53 | B66: 4 | C66: 520 | D66: 530 | E66: 2.466660739 | F66: 1.063339261 | G66: =A66-$L$11 -> 1.354497041
A67: 0.43 | B67: 3.17 | C67: 230 | D67: 430 | E67: =$N$4+$M$4*B67+$L$4*C67+$K$4*D67 -> 2.18247695 | F67: =A67-E67 -> -1.75247695 | G67: -1.745502959
A68: 1.67 | B68: 2.96 | C68: 220 | D68: 350 | E68: 2.080507953 | F68: -0.4105079534 | G68: -0.5055029586
A69: 3.74 | B69: 2.8 | C69: 390 | D69: 500 | E69: 2.15689691 | F69: 1.58310309 | G69: 1.564497041
A70: 2.63 | B70: 2.94 | C70: 500 | D70: 450 | E70: 2.166595194 | F70: 0.4634048059 | G70: 0.4544970414
A71: 3.08 | B71: 3.17 | C71: 300 | D71: 520 | E71: 2.247690942 | F71: 0.8323090575 | G71: 0.9044970414
A72: 1.35 | B72: 3.5 | C72: 380 | D72: 520 | E72: 2.331474856 | F72: -0.9814748555 | G72: -0.8255029586
A73: 2 | B73: 3.12 | C73: 320 | D73: 480 | E73: 2.2117243 | F73: -0.2117243004 | G73: -0.1755029586
A74: 2.83 | B74: 2.98 | C74: 360 | D74: 530 | E74: 2.21557578 | F74: 0.6144242201 | G74: 0.6544970414
A75: 2.57 | B75: 3.1 | C75: 220 | D75: 360 | E75: 2.119530257 | F75: 0.4504697426 | G75: 0.3944970414
A76: 1.38 | B76: 2.43 | C76: 610 | D76: 600 | E76: 2.156367032 | F76: -0.7763670317 | G76: -0.7955029586
A77: 3.5 | B77: 2.48 | C77: 450 | D77: 500 | E77: 2.088079363 | F77: 1.411920637 | G77: 1.324497041
A78: 1 | B78: 2.4 | C78: 390 | D78: 520 | E78: 2.077186932 | F78: -1.077186932 | G78: -1.175502959
A79: 1.2 | B79: 2.38 | C79: 200 | D79: 340 | E79: 1.937602518 | F79: -0.7376025179 | G79: -0.9755029586
A80: 1.72 | B80: 3.14 | C80: 550 | D80: 530 | E80: 2.26985754 | F80: -0.5498575404 | G80: -0.4555029586
A81: 1.9 | B81: 2.52 | C81: 350 | D81: 470 | E81: 2.068695612 | F81: -0.1686956122 | G81: -0.2755029586
A82: 2.09 | B82: 3.38 | C82: 380 | D82: 460 | E82: 2.264375298 | F82: -0.174375298 | G82: -0.08550295858
A83: 2.71 | B83: 2.85 | C83: 430 | D83: 560 | E83: 2.211370295 | F83: 0.4986297051 | G83: 0.5344970414
A84: 3.03 | B84: 3.64 | C84: 370 | D84: 560 | E84: 2.389224099 | F84: 0.6407759015 | G84: 0.8544970414
A85: 1.11 | B85: 2.96 | C85: 200 | D85: 330 | E85: 2.06561448 | F85: -0.9556144805 | G85: -1.065502959
A86: 0.5 | B86: 2.55 | C86: 390 | D86: 370 | E86: 2.013834455 | F86: -1.513834455 | G86: -1.675502959
A87: 3.55 | B87: 3.63 | C87: 660 | D87: 610 | E87: 2.445817483 | F87: 1.104182517 | G87: 1.374497041
A88: 3.77 | B88: 3.4 | C88: 320 | D88: 470 | E88: 2.270138652 | F88: 1.499861348 | G88: 1.594497041
A89: 2.04 | B89: 3 | C89: 420 | D89: 430 | E89: 2.160201338 | F89: -0.1202013378 | G89: -0.1355029586
A90: 3.76 | B90: 3.62 | C90: 370 | D90: 400 | E90: 2.279889556 | F90: 1.480110444 | G90: 1.584497041
A91: 2.87 | B91: 3.38 | C91: 200 | D91: 360 | E91: 2.182681393 | F91: 0.6873186074 | G91: 0.6944970414
A92: 1.15 | B92: 2.92 | C92: 300 | D92: 350 | E92: 2.078454813 | F92: -0.9284548128 | G92: -1.025502959
A93: 0.77 | B93: 3.25 | C93: 370 | D93: 420 | E93: 2.20713934 | F93: -1.43713934 | G93: -1.405502959
A94: 3.01 | B94: 3.55 | C94: 530 | D94: 430 | E94: 2.297733452 | F94: 0.7122665482 | G94: 0.8344970414
A95: 2.35 | B95: 3.81 | C95: 390 | D95: 550 | E95: 2.423925961 | F95: -0.07392596115 | G95: 0.1744970414
A96: 2.38 | B96: 3.29 | C96: 220 | D96: 580 | E96: 2.307563959 | F96: 0.07243604084 | G96: 0.2044970414
A97: 2.72 | B97: 2.92 | C97: 330 | D97: 430 | E97: 2.133512116 | F97: 0.5864878836 | G97: 0.5444970414
A98: 1.83 | B98: 2.72 | C98: 390 | D98: 590 | E98: 2.197228316 | F98: -0.3672283162 | G98: =A98-$L$11 -> -0.3455029586
A99: 1.82 | B99: 3.13 | C99: 310 | D99: 440 | E99: 2.186967228 | F99: -0.3669672278 | G99: -0.3555029586
A100: 1.86 | B100: 3.14 | C100: 200 | D100: 390 | E100: 2.14663356 | F100: -0.2866335602 | G100: -0.3155029586
A101: 3.22 | B101: 2.84 | C101: 210 | D101: 420 | E101: 2.097569523 | F101: 1.122430477 | G101: 1.044497041
A102: 3.57 | B102: 3.8 | C102: 510 | D102: 680 | E102: 2.517510297 | F102: 1.052489703 | G102: 1.394497041
A103: 2 | B103: 2.42 | C103: 310 | D103: 240 | E103: 1.891384504 | F103: 0.1086154955 | G103: -0.1755029586
A104: 2.65 | B104: 2.7 | C104: 410 | D104: 340 | E104: 2.030809639 | F104: 0.6191903606 | G104: 0.4744970414
A105: 2.8 | B105: 3.23 | C105: 360 | D105: 410 | E105: 2.195052763 | F105: 0.604947237 | G105: 0.6244970414
A106: 2.56 | B106: 3.53 | C106: 410 | D106: 570 | E106: 2.373861664 | F106: 0.1861383363 | G106: 0.3844970414
A107: 1.48 | B107: 3 | C107: 330 | D107: 590 | E107: 2.256766181 | F107: -0.7767661809 | G107: -0.6955029586
A108: 2.04 | B108: 3.17 | C108: 430 | D108: 570 | E108: 2.292151166 | F108: -0.2521511656 | G108: -0.1355029586
A109: 2.4 | B109: 3.09 | C109: 450 | D109: 410 | E109: 2.170703736 | F109: 0.2292962638 | G109: 0.2244970414
A110: 1.73 | B110: 3.23 | C110: 340 | D110: 520 | E110: 2.265223735 | F110: -0.5352237351 | G110: -0.4455029586
A111: 2.42 | B111: 3.31 | C111: 370 | D111: 550 | E111: 2.306123307 | F111: 0.1138766926 | G111: 0.2444970414
A112: 2.14 | B112: 2.55 | C112: 310 | D112: 460 | E112: 2.065498684 | F112: 0.07450131598 | G112: -0.03550295858
A113: 2.65 | B113: 2.81 | C113: 350 | D113: 330 | E113: 2.044365439 | F113: 0.605634561 | G113: 0.4744970414
A114: 3.2 | B114: 2.8 | C114: 250 | D114: 370 | E114: 2.059186018 | F114: 1.140813982 | G114: 1.024497041
A115: 2 | B115: 2.8 | C115: 310 | D115: 370 | E115: 2.064605924 | F115: -0.06460592362 | G115: -0.1755029586
A116: 1.64 | B116: 1.74 | C116: 260 | D116: 300 | E116: 1.768373844 | F116: -0.1283738444 | G116: -0.5355029586
A117: 1.14 | B117: 2.1 | C117: 600 | D117: 590 | E117: 2.072362923 | F117: -0.932362923 | G117: -1.035502959
A118: 2.42 | B118: 2.91 | C118: 270 | D118: 740 | E118: 2.328618275 | F118: 0.09138172526 | G118: 0.2444970414
A119: 2.13 | B119: 2.36 | C119: 540 | D119: 410 | E119: 2.009479408 | F119: 0.1205205923 | G119: -0.04550295858
A120: 0.85 | B120: 2.05 | C120: 340 | D120: 360 | E120: 1.88677843 | F120: -1.03677843 | G120: -1.325502959
A121: 2.13 | B121: 2.67 | C121: 410 | D121: 390 | E121: 2.056566973 | F121: 0.07343302743 | G121: -0.04550295858
A122: 2.87 | B122: 2.65 | C122: 330 | D122: 470 | E122: 2.097047942 | F122: 0.7729520582 | G122: 0.6944970414
A123: 2.23 | B123: 2.75 | C123: 360 | D123: 410 | E123: 2.083696585 | F123: 0.1463034148 | G123: 0.05449704142
A124: 1.77 | B124: 2.65 | C124: 260 | D124: 440 | E124: 2.071094462 | F124: -0.301094462 | G124: -0.4055029586
A125: 0.85 | B125: 3.04 | C125: 380 | D125: 460 | E125: 2.185498005 | F125: -1.335498005 | G125: -1.325502959
A126: 3.03 | B126: 3 | C126: 420 | D126: 570 | E126: 2.251809202 | F126: 0.7781907983 | G126: 0.8544970414
A127: 1.74 | B127: 2.12 | C127: 220 | D127: 330 | E127: 1.872547805 | F127: -0.1325478046 | G127: -0.4355029586
A128: 2.64 | B128: 2.6 | C128: 380 | D128: 390 | E128: 2.037617577 | F128: 0.6023824228 | G128: 0.4644970414
A129: 2.89 | B129: 3.39 | C129: 430 | D129: 630 | E129: 2.382449927 | F129: 0.5075500732 | G129: 0.7144970414
A130: 2 | B130: 2.19 | C130: 370 | D130: 470 | E130: 1.993944875 | F130: 0.006055124813 | G130: =A130-$L$11 -> -0.1755029586
A131: 0.7 | B131: 2.79 | C131: 580 | D131: 590 | E131: =$N$4+$M$4*B131+$L$4*C131+$K$4*D131 -> 2.230630793 | F131: =A131-E131 -> -1.530630793 | G131: -1.475502959
A132: 3.88 | B132: 3.22 | C132: 360 | D132: 500 | E132: 2.251623612 | F132: 1.628376388 | G132: 1.704497041
A133: 2.23 | B133: 3.25 | C133: 430 | D133: 390 | E133: 2.192928989 | F133: 0.03707101075 | G133: 0.05449704142
A134: 3.37 | B134: 2.36 | C134: 390 | D134: 410 | E134: 1.995929644 | F134: 1.374070356 | G134: 1.194497041
A135: 2.73 | B135: 2.93 | C135: 350 | D135: 570 | E135: 2.229246536 | F135: 0.5007534641 | G135: 0.5544970414
A136: 1.68 | B136: 2.34 | C136: 330 | D136: 360 | E136: 1.953152803 | F136: -0.273152803 | G136: -0.4955029586
A137: 3.05 | B137: 3.05 | C137: 520 | D137: 630 | E137: 2.311702493 | F137: 0.7382975073 | G137: 0.8744970414
A138: 1.23 | B138: 2.77 | C138: 370 | D138: 550 | E138: 2.180847607 | F138: -0.9508476075 | G138: -0.9455029586
A139: 3 | B139: 3.5 | C139: 310 | D139: 520 | E139: 2.325151632 | F139: 0.6748483677 | G139: 0.8244970414
A140: 2.59 | B140: 2.88 | C140: 430 | D140: 610 | E140: 2.25104715 | F140: 0.3389528497 | G140: 0.4144970414
A141: 1.9 | B141: 2.74 | C141: 300 | D141: 510 | E141: 2.141390948 | F141: -0.2413909477 | G141: -0.2755029586
A142: 3.2 | B142: 3.8 | C142: 240 | D142: 410 | E142: 2.316448413 | F142: 0.8835515872 | G142: 1.024497041
A143: 1 | B143: 3.44 | C143: 480 | D143: 470 | E143: 2.293871415 | F143: -1.293871415 | G143: -1.175502959
A144: 2 | B144: 3.21 | C144: 270 | D144: 480 | E144: 2.228086996 | F144: -0.2280869957 | G144: -0.1755029586
A145: 0.93 | B145: 2.57 | C145: 370 | D145: 420 | E145: 2.049384755 | F145: -1.119384755 | G145: -1.245502959
A146: 2.41 | B146: 3.3 | C146: 240 | D146: 440 | E146: 2.220082651 | F146: 0.1899173492 | G146: 0.2344970414
A147: 0.9 | B147: 3.1 | C147: 340 | D147: 510 | E147: 2.228521351 | F147: -1.328521351 | G147: -1.275502959
A148: 2.1 | B148: 2.16 | C148: 360 | D148: 400 | E148: 1.940277865 | F148: 0.1597221355 | G148: -0.07550295858
A149: 3.7 | B149: 2.45 | C149: 390 | D149: 450 | E149: 2.042982602 | F149: 1.657017398 | G149: 1.524497041
A150: 1.93 | B150: 3.04 | C150: 400 | D150: 330 | E150: 2.102240196 | F150: -0.1722401956 | G150: -0.2455029586
A151: 0.14 | B151: 3.49 | C151: 360 | D151: 580 | E151: 2.366608813 | F151: -2.226608813 | G151: -2.035502959
A152: 2.53 | B152: 2.61 | C152: 350 | D152: 510 | E152: 2.115748571 | F152: 0.4142514291 | G152: 0.3544970414
A153: 1 | B153: 3.1 | C153: 400 | D153: 470 | E153: 2.207767582 | F153: -1.207767582 | G153: -1.175502959
A154: 2.54 | B154: 2.9 | C154: 310 | D154: 550 | E154: 2.205586667 | F154: 0.3344133334 | G154: 0.3644970414
A155: 2.13 | B155: 2.77 | C155: 330 | D155: 440 | E155: 2.10525673 | F155: 0.02474327033 | G155: -0.04550295858
A156: 3.18 | B156: 3.93 | C156: 430 | D156: 630 | E156: 2.507725627 | F156: 0.6722743732 | G156: 1.004497041
A157: 3.54 | B157: 3.14 | C157: 290 | D157: 480 | E157: 2.213654188 | F157: 1.326345812 | G157: 1.364497041
A158: 2.16 | B158: 3.85 | C158: 370 | D158: 640 | E158: 2.490289777 | F158: -0.3302897771 | G158: -0.01550295858
A159: 2.15 | B159: 3.62 | C159: 490 | D159: 570 | E159: 2.401967488 | F159: -0.2519674879 | G159: -0.02550295858
A160: 1.33 | B160: 2.32 | C160: 290 | D160: 490 | E160: 2.029964137 | F160: -0.6999641369 | G160: -0.8455029586
A161: 0.83 | B161: 3.22 | C161: 630 | D161: 700 | E161: 2.406881565 | F161: -1.576881565 | G161: -1.345502959
A162: 3 | B162: 2.5 | C162: 290 | D162: 530 | E162: 2.097896379 | F162: 0.9021036211 | G162: =A162-$L$11 -> 0.8244970414
A163: 3.75 | B163: 2.67 | C163: 440 | D163: 520 | E163: 2.14434137 | F163: 1.60565863 | G163: 1.574497041
A164: 1.88 | B164: 2.88 | C164: 530 | D164: 510 | E164: 2.194646138 | F164: -0.3146461378 | G164: -0.2955029586
A165: 1.08 | B165: 2.19 | C165: 350 | D165: 310 | E165: 1.887443538 | F165: -0.8074435384 | G165: -1.095502959
A166: 3.7 | B166: 3.56 | C166: 460 | D166: 570 | E166: 2.385338013 | F166: 1.314661987 | G166: 1.524497041
A167: 2 | B167: 3.45 | C167: 390 | D167: 470 | E167: 2.288061477 | F167: -0.288061477 | G167: -0.1755029586
A168: 2.15 | B168: 2.82 | C168: 280 | D168: 550 | E168: 2.184317351 | F168: -0.03431735085 | G168: -0.02550295858
A169: 0.5 | B169: 2.95 | C169: 280 | D169: 460 | E169: 2.155585546 | F169: -1.655585546 | G169: -1.675502959
A170: 2.76 | B170: 3.21 | C170: 310 | D170: 400 | E170: 2.179352915 | F170: 0.5806470847 | G170: 0.5844970414

Sheet Finite Differences
A1: 1 | B1: ¬ Value of x at which derivatives are computed entered here
B3: Derivative Values | F3: Errors Values
A4: Step size | B4: First Derivatives | D4: Second Derivatives | F4: First Derivatives | H4: Second Derivatives
B5: 2nd Order | C5: 4th Order | D5: 2nd Order | E5: 4th Order | F5: 2nd Order | G5: 4th Order | H5: 2nd Order | I5: 4th Order
A6: 1e-10 | B6: =(COS($A$1+$A6)-COS($A$1-$A6))/(2*$A6) -> -0.8414707819 | C6: =(COS($A$1-2*$A6)+8*COS($A$1+$A6)-(8*COS($A$1-$A6)+COS($A$1+2*$A6)))/(12*$A6) -> -0.8414705969 | D6: =(COS($A$1+$A6)+COS($A$1-$A6)-2*COS($A$1))/($A6^2) -> 0 | E6: =(16*COS($A$1+$A6)+16*COS($A$1-$A6)-(COS($A$1-2*$A6)+COS($A$1+2*$A6)+30*COS($A$1)))/(12*$A6^2) -> 0 | F6: =ABS(B6+SIN($A$1)) -> 2.028652639e-07 | G6: =ABS(C6+SIN($A$1)) -> 3.879024347e-07 | H6: =ABS(D6+COS($A$1)) -> 0.5403023059 | I6: =ABS(E6+COS($A$1)) -> 0.5403023059
A7: =10*A6 -> 1e-09 | B7: =(COS($A$1+$A7)-COS($A$1-$A7))/(2*$A7) -> -0.841471004 | C7: =(COS($A$1-2*$A7)+8*COS($A$1+$A7)-(8*COS($A$1-$A7)+COS($A$1+2*$A7)))/(12*$A7) -> -0.841470967 | D7: -222.0446049 | E7: =(16*COS($A$1+$A7)+16*COS($A$1-$A7)-(COS($A$1-2*$A7)+COS($A$1+2*$A7)+30*COS($A$1)))/(12*$A7^2) -> -296.0594732 | F7: =ABS(B7+SIN($A$1)) -> 1.9179341e-08 | G7: =ABS(C7+SIN($A$1)) -> 1.782809322e-08 | H7: =ABS(D7+COS($A$1)) -> 221.5043026 | I7: =ABS(E7+COS($A$1)) -> 295.5191709
A8: =10*A7 -> 1e-08 | B8: -0.8414709818 | C8: -0.8414709818 | D8: 0 | E8: 0 | F8: 3.025119488e-09 | G8: 3.025119599e-09 | H8: 0.5403023059 | I8: 0.5403023059
A9: 1e-07 | B9: -0.8414709851 | C9: -0.8414709855 | D9: -0.5551115123 | E9: -0.5625129991 | F9: 3.055495856e-10 | G9: 6.756240012e-10 | H9: 0.01480920644 | I9: 0.02221069328
A10: 1e-06 | B10: -0.8414709848 | C10: -0.8414709847 | D10: -0.5402345238 | E10: -0.5400124792 | F10: 2.751732175e-11 | G10: 6.452482992e-11 | H10: 6.778208554e-05 | I10: 0.0002898266905
A11: 1e-05 | B11: -0.8414709848 | C11: -0.8414709848 | D11: -0.5403055781 | E11: -0.5403055781 | F11: 1.086386536e-11 | G11: 2.088662576e-12 | H11: 3.272188038e-06 | I11: 3.272188038e-06
A12: 0.0001 | B12: -0.8414709834 | C12: -0.8414709848 | D12: -0.5403023362 | E12: -0.540302351 | F12: 1.402528427e-09 | G12: 1.31783473e-13 | H12: 3.033680562e-08 | I12: 4.513977925e-08
A13: 0.001 | B13: -0.8414708446 | C13: -0.8414709848 | D13: -0.5403022607 | E13: -0.5403023057 | F13: 1.402451881e-07 | G13: 5.784261958e-14 | H13: 4.515836016e-08 | I13: 1.573202679e-10
A14: 0.01 | B14: -0.8414569604 | C14: -0.8414709845 | D14: -0.5402978034 | E14: -0.5403023058 | F14: 1.402444629e-05 | G14: 2.804853017e-10 | H14: 4.502503964e-06 | I14: 5.962064176e-11
A15: 0.1 | B15: -0.8400692342 | C15: =(COS($A$1-2*$A15)+8*COS($A$1+$A15)-(8*COS($A$1-$A15)+COS($A$1+2*$A15)))/(12*$A15) -> -0.8414681832 | D15: =(COS($A$1+$A15)+COS($A$1-$A15)-2*COS($A$1))/($A15^2) -> -0.539852204 | E15: -0.5403017061 | F15: 0.001401750582 | G15: 2.801566059e-06 | H15: 0.0004501018644 | I15: 5.998000854e-07
C20: ="Finite-Difference Errors for cos(x) Derivatives at x = " & TEXT(A1,"#0.0#######") -> Finite-Difference Errors for cos(x) Derivatives at x = 1.0

Sheet Finite Differences (x = 1)
A1: 1 | B1: ¬ Insert x value at which function is computed here
B3: Derivative Values | F3: Errors Values
A4: Step size | B4: First Derivatives | D4: Second Derivatives | F4: First Derivatives | H4: Second Derivatives
B5: 2nd Order | C5: 4th Order | D5: 2nd Order | E5: 4th Order | F5: 2nd Order | G5: 4th Order | H5: 2nd Order | I5: 4th Order
A6: 1e-10 | B6: =(COS($A$1+$A6)-COS($A$1-$A6))/(2*$A6) -> -0.8414707819 | C6: =(COS($A$1-2*$A6)+8*COS($A$1+$A6)-(8*COS($A$1-$A6)+COS($A$1+2*$A6)))/(12*$A6) -> -0.8414705969 | D6: =(COS($A$1+$A6)+COS($A$1-$A6)-2*COS($A$1))/($A6^2) -> 0 | E6: =(16*COS($A$1+$A6)+16*COS($A$1-$A6)-(COS($A$1-2*$A6)+COS($A$1+2*$A6)+30*COS($A$1)))/(12*$A6^2) -> 0 | F6: =ABS(B6+SIN($A$1)) -> 2.028652639e-07 | G6: =ABS(C6+SIN($A$1)) -> 3.879024347e-07 | H6: =ABS(D6+COS($A$1)) -> 0.5403023059 | I6: =ABS(E6+COS($A$1)) -> 0.5403023059
A7: =10*A6 -> 1e-09 | B7: =(COS($A$1+$A7)-COS($A$1-$A7))/(2*$A7) -> -0.841471004 | C7: =(COS($A$1-2*$A7)+8*COS($A$1+$A7)-(8*COS($A$1-$A7)+COS($A$1+2*$A7)))/(12*$A7) -> -0.841470967 | D7: -222.0446049 | E7: =(16*COS($A$1+$A7)+16*COS($A$1-$A7)-(COS($A$1-2*$A7)+COS($A$1+2*$A7)+30*COS($A$1)))/(12*$A7^2) -> -296.0594732 | F7: =ABS(B7+SIN($A$1)) -> 1.9179341e-08 | G7: 1.782809322e-08 | H7: =ABS(D7+COS($A$1)) -> 221.5043026 | I7: 295.5191709
A8: =10*A7 -> 1e-08 | B8: -0.8414709818 | C8: -0.8414709818 | D8: 0 | E8: 0 | F8: 3.025119488e-09 | G8: 3.025119599e-09 | H8: 0.5403023059 | I8: 0.5403023059
A9: 1e-07 | B9: -0.8414709851 | C9: -0.8414709855 | D9: -0.5551115123 | E9: -0.5625129991 | F9: 3.055495856e-10 | G9: 6.756240012e-10 | H9: 0.01480920644 | I9: 0.02221069328
A10: 1e-06 | B10: -0.8414709848 | C10: -0.8414709847 | D10: -0.5402345238 | E10: -0.5400124792 | F10: 2.751732175e-11 | G10: 6.452482992e-11 | H10: 6.778208554e-05 | I10: 0.0002898266905
A11: 1e-05 | B11: -0.8414709848 | C11: -0.8414709848 | D11: -0.5403055781 | E11: -0.5403055781 | F11: 1.086386536e-11 | G11: 2.088662576e-12 | H11: 3.272188038e-06 | I11: 3.272188038e-06
A12: 0.0001 | B12: -0.8414709834 | C12: -0.8414709848 | D12: -0.5403023362 | E12: -0.540302351 | F12: 1.402528427e-09 | G12: 1.31783473e-13 | H12: 3.033680562e-08 | I12: 4.513977925e-08
A13: 0.001 | B13: -0.8414708446 | C13: -0.8414709848 | D13: -0.5403022607 | E13: -0.5403023057 | F13: 1.402451881e-07 | G13: 5.784261958e-14 | H13: 4.515836016e-08 | I13: 1.573202679e-10
A14: 0.01 | B14: -0.8414569604 | C14: -0.8414709845 | D14: -0.5402978034 | E14: -0.5403023058 | F14: 1.402444629e-05 | G14: 2.804853017e-10 | H14: 4.502503964e-06 | I14: 5.962064176e-11
A15: 0.1 | B15: -0.8400692342 | C15: =(COS($A$1-2*$A15)+8*COS($A$1+$A15)-(8*COS($A$1-$A15)+COS($A$1+2*$A15)))/(12*$A15) -> -0.8414681832 | D15: =(COS($A$1+$A15)+COS($A$1-$A15)-2*COS($A$1))/($A15^2) -> -0.539852204 | E15: -0.5403017061 | F15: 0.001401750582 | G15: 2.801566059e-06 | H15: 0.0004501018644 | I15: 5.998000854e-07
D23: ="Finite-Difference Errors for cos(x) at x = "&TEXT(A1, "#.00") -> Finite-Difference Errors for cos(x) at x = 1.00

Sheet Sheet3 (hidden)
C3: Error Results for Cosine Derivatives
C4: Step size | D4: Errors Values at x = p/2 | H4: Errors Values at x = 1
D5: First Derivatives | F5: Second Derivatives | H5: First Derivatives | J5: Second Derivatives
D6: 2nd Order | E6: 4th Order | F6: 2nd Order | G6: 4th Order | H6: 2nd Order | I6: 4th Order | J6: 2nd Order | K6: 4th Order
C7: 1e-10 | D7: 8.2740371e-08 | E7: 8.2740371e-08 | F7: 6.125742275e-17 | G7: 6.125742275e-17 | H7: 2.028652639e-07 | I7: 3.879024347e-07 | J7: 0.5403023059 | K7: 0.5403023059
C8: =10*C7 -> 1e-09 | D8: 8.2740371e-08 | E8: 1.19747805e-07 | F8: 6.125742275e-17 | G8: 6.125742275e-17 | H8: 1.9179341e-08 | I8: 1.782809322e-08 | J8: 221.5043026 | K8: 295.5191709
C9: =10*C8 -> 1e-08 | D9: 6.077470971e-09 | E9: 9.778214571e-09 | F9: 6.125742275e-17 | G9: 6.125742275e-17 | H9: 3.025119488e-09 | I9: 3.025119599e-09 | J9: 0.5403023059 | K9: 0.5403023059
C10: 1e-07 | D10: 5.838654005e-10 | E10: 9.539415924e-10 | F10: 6.125742275e-17 | G10: 6.125742275e-17 | H10: 3.055495856e-10 | I10: 6.756240012e-10 | J10: 0.01480920644 | K10: 0.02221069328
C11: 1e-06 | D11: 8.243328242e-11 | E11: 1.192741461e-10 | F11: 6.125742275e-17 | G11: 6.125742275e-17 | H11: 2.751732175e-11 | I11: 6.452482992e-11 | J11: 6.778208554e-05 | K11: 0.0002898266905
C12: 1e-05 | D12: 1.011546402e-11 | E12: 1.025202145e-11 | F12: 6.125742275e-17 | G12: 6.125742275e-17 | H12: 1.086386536e-11 | I12: 2.088662576e-12 | J12: 3.272188038e-06 | K12: 3.272188038e-06
C13: 0.0001 | D13: 1.666776717e-09 | E13: 1.100231017e-13 | F13: 6.125742275e-17 | G13: 6.125742275e-17 | H13: 1.402528427e-09 | I13: 1.31783473e-13 | J13: 3.033680562e-08 | K13: 4.513977925e-08
C14: 0.001 | D14: 1.666667685e-07 | E14: 1.804112415e-13 | F14: 6.125742275e-17 | G14: 1.800877879e-14 | H14: 1.402451881e-07 | I14: 5.784261958e-14 | J14: 4.515836016e-08 | K14: 1.573202679e-10
C15: 0.01 | D15: 1.666658333e-05 | E15: 3.333283649e-10 | F15: 6.566470458e-15 | G15: 6.74717082e-15 | H15: 1.402444629e-05 | I15: 2.804853017e-10 | J15: 4.502503964e-06 | K15: 5.962064176e-11
C16: 0.1 | D16: 0.001665833532 | E16: 3.329367392e-06 | F16: 2.997819007e-16 | G16: 2.437647884e-16 | H16: 0.001401750582 | I16: 2.801566059e-06 | J16: 0.0004501018644 | K16: 5.998000854e-07
